bitfinex/quotes_BTCUSD_20210402
["timestamp","ask_amount","ask_price","bid_price","bid_amount"]
[1617334396482,0.386475,59795.0,59794.0,0.66928]
[1617334396678,0.1,59798.0,59794.0,0.66928]
[1617334396879,2.06753,59795.0,59794.0,0.66928]
[1617334397080,0.774005,59795.0,59794.0,0.66928]
[1617334397281,1.104005,59795.0,59794.0,0.66928]
[1617334397481,0.774005,59795.0,59794.0,0.66928]
[1617334397704,0.38753,59795.0,59794.0,0.66928]
[1617334397905,0.1,59798.0,59794.0,0.66428]
[1617334398306,0.095,59798.0,59794.0,0.66428]
[1617334400562,0.386475,59797.0,59794.0,0.66428]
[1617334401259,0.3181,59796.0,59794.0,0.66428]
[1617334401456,2.296475,59795.0,59794.0,0.66428]
[1617334401661,2.336475,59795.0,59794.0,0.66428]
[1617334401861,2.499575,59795.0,59794.0,0.66428]
[1617334402065,2.336475,59795.0,59794.0,0.66428]
[1617334402263,2.499575,59795.0,59794.0,0.66428]
[1617334402459,2.791475,59795.0,59794.0,0.66428]
[1617334405073,2.841475,59795.0,59794.0,0.66428]
[1617334405272,2.891475,59795.0,59794.0,0.66428]
[1617334405476,3.219575,59795.0,59794.0,0.66428]
[1617334405688,4.389575,59795.0,59794.0,0.66428]
[1617334406086,4.639575,59795.0,59794.0,0.66428]
[1617334406480,4.939575,59795.0,59794.0,0.54428]
[1617334407682,5.24980237,59795.0,59794.0,0.54428]
[1617334408307,5.51163695,59795.0,59794.0,0.54428]
[1617334408505,5.26163695,59795.0,59794.0,0.54428]
[1617334408705,5.20257458,59795.0,59794.0,0.54428]
[1617334408904,5.45257458,59795.0,59794.0,0.54428]
[1617334409307,5.85251832,59795.0,59794.0,0.54428]
[1617334409904,5.95251832,59795.0,59794.0,0.54428]
[1617334410604,5.95251832,59795.0,59794.0,0.53428]
[1617334411836,0.34175022,59793.0,59792.0,0.005]
[1617334412034,5.30264225,59793.0,59792.0,0.005]
[1617334412232,6.60264225,59793.0,59792.0,0.005]
[1617334412633,6.60264225,59793.0,59770.0,1.7754]
[1617334412840,0.34175022,59781.0,59770.0,1.7754]
[1617334413041,3.238,59771.0,59770.0,2.43963]
[1617334413238,4.06441874,59771.0,59770.0,2.43963]
[1617334413453,4.76138763,59771.0,59770.0,2.43963]
[1617334413649,4.82731763,59771.0,59770.0,2.43963]
[1617334413853,5.08844874,59771.0,59770.0,2.43963]
[1617334414058,5.33968474,59771.0,59770.0,2.43963]
[1617334414653,5.17658474,59771.0,59770.0,0.66923]
[1617334415091,5.22658474,59771.0,59770.0,0.66923]
[1617334415293,3.2431,59770.0,59764.0,0.0004]
[1617334415499,0.549475,59766.0,59764.0,0.0004]
[1617334415697,0.98341874,59765.0,59764.0,0.0004]
[1617334416094,1.24750104,59765.0,59764.0,0.0004]
[1617334416293,1.54651874,59765.0,59764.0,0.0004]
[1617334416496,2.24651874,59765.0,59764.0,0.0004]
[1617334416699,2.24750102,59765.0,59764.0,0.0002]
[1617334416893,2.60266626,59765.0,59764.0,0.6695]
[1617334417094,3.32266626,59765.0,59764.0,0.6695]
[1617334417293,3.37168398,59765.0,59764.0,0.6695]
[1617334417496,6.80168398,59765.0,59764.0,0.6695]
[1617334417702,7.14364865,59765.0,59764.0,0.6633]
[1617334417897,7.53360234,59765.0,59764.0,0.6633]
[1617334418899,7.53360234,59765.0,59764.0,0.2037]
[1617334419101,7.6784371,59765.0,59764.0,0.2037]
[1617334419710,7.6784371,59765.0,59756.0,0.0004]
[1617334419711,0.159,59756.0,59754.0,0.0002]
[1617334419907,1.846192,59755.0,59754.0,0.0002]
[1617334420107,2.26207724,59755.0,59754.0,0.0002]
[1617334420304,2.48707724,59755.0,59754.0,0.0002]
[1617334420505,2.58707724,59755.0,59754.0,0.0002]
[1617334420703,2.88707724,59755.0,59754.0,0.66961]
[1617334421327,5.4571986,59755.0,59754.0,0.66961]
[1617334421526,5.6202986,59755.0,59754.0,0.66961]
[1617334422925,5.9571986,59755.0,59754.0,0.66961]
[1617334423127,5.7561986,59755.0,59754.0,0.66961]
[1617334423327,5.30356024,59755.0,59754.0,0.66961]
[1617334423525,5.77356024,59755.0,59754.0,0.64261]
[1617334423729,6.22350398,59755.0,59754.0,0.64261]
[1617334423945,6.01539398,59755.0,59754.0,0.64261]
[1617334424147,6.64249398,59755.0,59754.0,0.64261]
[1617334424349,6.56441234,59755.0,59754.0,0.64261]
[1617334424546,5.95939398,59755.0,59754.0,0.64261]
[1617334424949,6.35131234,59755.0,59754.0,0.64261]
[1617334425547,6.30442234,59755.0,59754.0,0.64261]
[1617334426349,5.80442234,59755.0,59754.0,0.64261]
[1617334426578,1.17333874,59755.0,59754.0,0.64261]
[1617334426779,0.77641874,59755.0,59754.0,0.64261]
[1617334426978,0.671475,59755.0,59754.0,0.64261]
[1617334427177,0.191475,59755.0,59754.0,0.64261]
[1617334427374,0.1,59755.0,59754.0,0.63261]
[1617334428974,0.1,59755.0,59754.0,1.46951]
[1617334429409,0.1,59755.0,59754.0,3.674575]
[1617334429608,0.1,59755.0,59754.0,1.46951]
[1617334429807,0.1,59755.0,59754.0,0.63261]
[1617334430437,0.1,59755.0,59754.0,0.883839]
[1617334433855,0.1,59755.0,59754.0,0.878839]
[1617334434055,0.165,59770.0,59757.0,0.9]
[1617334434257,0.002,59768.0,59757.0,0.9]
[1617334434453,0.135,59769.0,59757.0,1.52761]
[1617334434656,0.129,59769.0,59757.0,1.52761]
[1617334435055,0.179,59769.0,59757.0,1.52761]
[1617334435458,0.05,59769.0,59760.0,0.0052]
[1617334435655,0.002,59771.0,59760.0,0.63281]
[1617334435855,0.002,59771.0,59760.0,0.62761]
[1617334436860,0.34538762,59772.0,59752.0,0.004]
[1617334436861,0.00098186,59764.0,59752.0,0.004]
[1617334437083,0.002,59762.0,59748.0,0.004]
[1617334437282,0.002,59762.0,59746.0,1.126026]
[1617334437484,0.00298188,59762.0,59746.0,1.126026]
[1617334437684,0.35306158,59765.0,59747.0,0.79]
[1617334437685,0.002,59760.0,59747.0,0.79]
[1617334437882,0.002,59760.0,59748.0,0.0054]
[1617334438081,0.14,59759.0,59748.0,0.6749]
[1617334438280,0.002,59760.0,59748.0,0.6749]
[1617334438479,0.002,59760.0,59748.0,0.6695]
[1617334438682,0.0008,59764.0,59748.0,0.6695]
[1617334439483,0.0008,59764.0,59748.0,1.5064]
[1617334439899,0.0008,59764.0,59748.0,0.6695]
[1617334440099,0.0008,59764.0,59750.0,0.0052]
[1617334440298,0.0008,59764.0,59750.0,0.6747]
[1617334440902,0.0008,59764.0,59754.0,0.0048]
[1617334441105,0.301276,59766.0,59754.0,0.6743]
[1617334441304,0.164,59757.0,59754.0,0.6695]
[1617334441505,0.65,59765.0,59754.0,0.6695]
[1617334441707,0.386486,59764.0,59754.0,0.6695]
[1617334442101,0.436486,59764.0,59754.0,0.6695]
[1617334442353,0.5405564,59763.0,59754.0,0.6695]
[1617334442551,0.195,59762.0,59754.0,0.6695]
[1617334443552,0.05,59764.0,59754.0,0.6695]
[1617334443751,0.00494557,59768.0,59754.0,0.6695]
[1617334443953,0.00494557,59768.0,59755.0,0.0046]
[1617334443954,0.386486,59767.0,59755.0,0.0046]
[1617334444158,0.386486,59766.0,59755.0,0.6741]
[1617334444554,0.386486,59762.0,59755.0,0.6741]
[1617334444754,0.251261,59766.0,59755.0,0.6695]
[1617334444962,0.386486,59762.0,59755.0,0.6695]
[1617334445160,0.26,59761.0,59755.0,0.6695]
[1617334445360,0.03928672,59765.0,59755.0,0.6695]
[1617334445560,0.436486,59761.0,59755.0,0.6695]
[1617334445764,0.1090856,59767.0,59755.0,0.6695]
[1617334445969,0.05908525,59768.0,59757.0,0.0052]
[1617334446178,0.05908509,59769.0,59759.0,0.3500564]
[1617334446370,0.03928434,59783.0,59759.0,0.3500564]
[1617334446371,0.05908559,59768.0,59761.0,0.0048]
[1617334446574,0.42984466,59792.0,59767.0,0.0052]
[1617334446575,0.05908014,59775.0,59767.0,0.0052]
[1617334446766,0.05908014,59775.0,59768.0,0.8369]
[1617334446968,0.5,59790.0,59768.0,0.6749]
[1617334446969,0.05907701,59778.0,59768.0,0.6749]
[1617334447169,0.47018187,59792.0,59772.0,0.0046]
[1617334447170,0.05907665,59780.0,59772.0,0.0046]
[1617334447369,0.05907697,59779.0,59772.0,0.6741]
[1617334447610,0.05907653,59780.0,59772.0,0.6695]
[1617334447807,0.05907653,59780.0,59772.0,0.66916194]
[1617334448004,0.05907653,59780.0,59772.0,0.67336194]
[1617334448607,0.05907483,59781.0,59772.0,0.67336194]
[1617334449212,0.05907393,59782.0,59772.0,0.66336194]
[1617334449404,0.05907393,59782.0,59776.0,0.0058]
[1617334449807,0.05907393,59782.0,59776.0,0.66496194]
[1617334450224,0.05907171,59783.0,59776.0,0.66496194]
[1617334450423,0.251163,59790.0,59776.0,0.66496194]
[1617334450424,0.05907141,59784.0,59776.0,0.66496194]
[1617334450821,0.05907141,59784.0,59776.0,1.50186194]
[1617334451027,0.05907141,59784.0,59777.0,1.49606194]
[1617334451227,0.05907079,59787.0,59780.0,0.0042]
[1617334451423,0.05907079,59787.0,59780.0,1.50026194]
[1617334451624,0.05906942,59788.0,59780.0,0.66336194]
[1617334452427,0.0590681,59789.0,59780.0,0.66336194]
[1617334452626,0.05906788,59790.0,59784.0,0.0058]
[1617334452839,0.05906788,59790.0,59784.0,0.66496194]
[1617334453037,0.05906788,59790.0,59784.0,0.65916194]
[1617334453441,0.00294147,59794.0,59784.0,0.65916194]
[1617334453639,0.00294154,59795.0,59784.0,0.65916194]
[1617334453836,0.386486,59791.0,59784.0,0.65916194]
[1617334454041,0.386486,59787.0,59784.0,0.65916194]
[1617334454242,0.002,59794.0,59784.0,0.65916194]
[1617334454243,0.00294154,59793.0,59784.0,0.65916194]
[1617334454443,0.002,59794.0,59784.0,0.65916194]
[1617334454638,0.002,59794.0,59784.0,0.65416194]
[1617334455038,0.00494148,59794.0,59784.0,0.65416194]
[1617334455241,0.16604148,59794.0,59784.0,0.65416194]
[1617334455459,0.386486,59790.0,59784.0,0.65416194]
[1617334455660,0.386486,59786.0,59784.0,0.65416194]
[1617334455859,3.466486,59785.0,59784.0,0.65416194]
[1617334456057,4.021486,59785.0,59784.0,0.65416194]
[1617334456863,4.216636,59785.0,59784.0,0.65416194]
[1617334458278,4.551576,59785.0,59784.0,0.65416194]
[1617334459081,4.866676,59785.0,59784.0,0.65416194]
[1617334459881,4.916676,59785.0,59784.0,0.65416194]
[1617334460306,4.753576,59785.0,59784.0,0.65416194]
[1617334460505,4.596576,59785.0,59784.0,0.65416194]
[1617334460906,4.546576,59785.0,59784.0,0.65416194]
[1617334461109,4.396426,59785.0,59784.0,0.65416194]
[1617334461309,4.396426,59785.0,59784.0,0.64916194]
[1617334463928,4.696426,59785.0,59784.0,0.64916194]
[1617334464129,5.018526,59785.0,59784.0,0.64916194]
[1617334464333,5.170786,59785.0,59784.0,0.64916194]
[1617334464533,5.420786,59785.0,59784.0,0.64916194]
[1617334465534,0.34967354,59783.0,59770.0,1.7778]
[1617334465731,0.00294679,59778.0,59770.0,1.87881637]
[1617334465963,0.16604679,59778.0,59770.0,1.7778]
[1617334466161,0.46392737,59777.0,59770.0,1.7778]
[1617334466360,0.3,59776.0,59770.0,1.7778]
[1617334466763,0.251237,59775.0,59770.0,0.66923]
[1617334466963,4.09646,59771.0,59770.0,0.66923]
[1617334467162,4.44538737,59771.0,59770.0,0.66923]
[1617334467759,4.14646,59771.0,59770.0,0.66923]
[1617334467959,1.317702,59771.0,59770.0,0.66923]
[1617334468162,0.687702,59771.0,59770.0,0.66923]
[1617334468785,1.217702,59771.0,59770.0,0.66923]
[1617334468986,0.687702,59771.0,59770.0,0.66923]
[1617334469787,1.247702,59771.0,59770.0,0.66923]
[1617334469988,0.687702,59771.0,59770.0,0.66923]
[1617334471202,0.637702,59771.0,59770.0,0.66923]
[1617334471804,1.147702,59771.0,59770.0,0.66923]
[1617334472001,1.317702,59771.0,59770.0,0.66923]
[1617334472201,0.807702,59771.0,59770.0,0.66923]
[1617334473832,1.467702,59771.0,59770.0,0.66923]
[1617334474831,2.637702,59771.0,59770.0,0.66923]
[1617334475434,2.687702,59771.0,59770.0,0.66923]
[1617334475635,2.744972,59771.0,59770.0,0.66923]
[1617334476462,1.574972,59771.0,59770.0,0.66923]
[1617334476663,1.467702,59771.0,59770.0,0.66923]
[1617334477263,0.807702,59771.0,59770.0,0.66923]
[1617334477468,0.857702,59771.0,59770.0,1.50613]
[1617334477665,0.807702,59771.0,59770.0,1.50613]
[1617334477861,0.807702,59771.0,59770.0,0.66923]
[1617334479886,0.807702,59771.0,59770.0,1.50613]
[1617334480088,0.421242,59771.0,59770.0,0.66923]
[1617334480787,2.151242,59771.0,59770.0,0.66923]
[1617334480985,2.537702,59771.0,59770.0,0.66923]
[1617334482011,0.807702,59771.0,59770.0,0.66923]
[1617334482214,0.837702,59771.0,59770.0,0.66923]
[1617334485042,0.837702,59771.0,59770.0,0.66897832]
[1617334486843,0.812702,59771.0,59770.0,0.66897832]
[1617334488664,1.352702,59771.0,59770.0,0.66897832]
[1617334489064,0.812702,59771.0,59770.0,0.66897832]
[1617334491170,0.812702,59771.0,59770.0,0.6670323]
[1617334491583,1.532702,59771.0,59770.0,0.6670323]
[1617334491974,0.812702,59771.0,59770.0,0.6670323]
[1617334492215,2.062702,59771.0,59770.0,0.6570323]
[1617334492372,0.812702,59771.0,59770.0,0.6570323]
[1617334497775,0.787702,59771.0,59770.0,0.6570323]
[1617334499978,0.987702,59771.0,59770.0,0.6570323]
[1617334500203,0.787702,59771.0,59770.0,0.6570323]
[1617334501407,0.987702,59771.0,59770.0,0.6570323]
[1617334501609,1.471242,59771.0,59770.0,0.6570323]
[1617334501815,3.2431,59770.0,59769.0,3.23e-05]
[1617334502018,0.70203442,59768.0,59761.0,1.0]
[1617334502213,3.241,59762.0,59761.0,1.0]
[1617334502418,4.45781573,59762.0,59761.0,0.664868]
[1617334502610,5.10378576,59762.0,59761.0,0.664868]
[1617334502850,6.100301,59762.0,59761.0,0.999066]
[1617334503047,6.20838264,59762.0,59761.0,0.663952]
[1617334503246,7.100301,59762.0,59761.0,0.663952]
[1617334503449,6.599301,59762.0,59761.0,0.32882]
[1617334503651,7.109301,59762.0,59761.0,0.32882]
[1617334503846,7.16723576,59762.0,59761.0,0.32882]
[1617334504050,0.3529823,59760.0,59754.0,0.015133]
[1617334504252,4.25975,59755.0,59754.0,0.015133]
[1617334504452,6.0668247,59755.0,59754.0,0.015133]
[1617334504648,5.76165946,59755.0,59754.0,0.015133]
[1617334504848,5.75165946,59755.0,59754.0,0.684543]
[1617334505052,6.50165946,59755.0,59754.0,0.684543]
[1617334505393,6.95165946,59755.0,59754.0,0.684543]
[1617334505593,7.20303146,59755.0,59754.0,0.684543]
[1617334505789,6.8111131,59755.0,59754.0,0.684543]
[1617334506099,6.8111131,59755.0,59754.0,1.521443]
[1617334506100,2.34813834,59755.0,59754.0,1.521443]
[1617334506298,0.30758573,59755.0,59754.0,1.521443]
[1617334506499,0.03,59771.0,59754.0,1.816515]
[1617334506500,0.05919032,59759.0,59754.0,1.816515]
[1617334506701,0.05918923,59763.0,59755.0,1.48828654]
[1617334506894,0.05918923,59763.0,59757.0,0.67501]
[1617334507097,0.05919056,59761.0,59757.0,0.67501]
[1617334507294,0.03,59771.0,59757.0,0.67501]
[1617334507295,0.0591895,59760.0,59757.0,0.67501]
[1617334507697,0.05919001,59759.0,59757.0,0.67501]
[1617334508109,0.05919001,59759.0,59757.0,0.66941]
[1617334508512,0.18784003,59771.0,59757.0,0.66941]
[1617334508513,0.05919047,59760.0,59757.0,0.66941]
[1617334508710,0.05919047,59760.0,59757.0,0.67341]
[1617334509915,0.31044432,59761.0,59757.0,0.67341]
[1617334510113,0.31044432,59761.0,59758.0,0.17]
[1617334510316,0.31044432,59761.0,59758.0,0.66941]
[1617334510733,0.31044432,59761.0,59758.0,0.66441]
[1617334510938,0.251255,59761.0,59758.0,0.66441]
[1617334511936,0.3,59760.0,59758.0,0.66441]
[1617334512536,0.3,59760.0,59758.0,0.66243859]
[1617334513953,0.29962,59760.0,59758.0,0.66243859]
[1617334515560,0.29962,59760.0,59759.0,1.2644]
[1617334515758,0.29962,59760.0,59759.0,2.11683859]
[1617334516799,0.29962,59760.0,59759.0,2.41687959]
[1617334517201,0.29962,59760.0,59759.0,1.57997959]
[1617334517398,0.29962,59760.0,59759.0,2.41687959]
[1617334517801,0.29962,59760.0,59759.0,1.57997959]
[1617334519016,0.29962,59760.0,59759.0,1.38997959]
[1617334523486,0.29962,59760.0,59759.0,2.22687959]
[1617334523684,0.29962,59760.0,59759.0,2.41687959]
[1617334524279,0.29962,59760.0,59759.0,4.65687959]
[1617334525081,0.29962,59760.0,59759.0,2.41687959]
[1617334525283,0.30257603,59760.0,59759.0,3.18687959]
[1617334525880,0.00295603,59760.0,59759.0,3.18687959]
[1617334526683,0.00295603,59760.0,59759.0,2.41687959]
[1617334527088,0.251223,59768.0,59760.0,0.10101637]
[1617334527287,0.251223,59768.0,59761.0,1.23794237]
[1617334527486,0.3,59765.0,59762.0,0.93791637]
[1617334527684,0.3,59765.0,59763.0,0.300016]
[1617334527886,0.3,59765.0,59763.0,0.96245459]
[1617334528686,0.3,59765.0,59763.0,1.79935459]
[1617334528885,0.3,59765.0,59764.0,1.14]
[1617334529110,0.3,59765.0,59764.0,1.25346496]
[1617334529310,0.3,59765.0,59764.0,1.15244859]
[1617334529509,0.251223,59768.0,59764.0,1.15244859]
[1617334529712,0.251223,59768.0,59765.0,0.470003]
[1617334529914,0.251223,59768.0,59765.0,1.13244159]
[1617334530913,0.251223,59768.0,59765.0,0.96244159]
[1617334531115,0.251223,59768.0,59765.0,0.66243859]
[1617334531319,0.38646,59767.0,59765.0,0.66243859]
[1617334531766,0.251223,59768.0,59765.0,0.66243859]
[1617334531967,3.02,59766.0,59765.0,0.66243859]
[1617334532164,0.68646,59766.0,59765.0,0.65473612]
[1617334532566,0.99146,59766.0,59765.0,0.65473612]
[1617334533565,0.99146,59766.0,59765.0,0.64973612]
[1617334536241,1.242732,59766.0,59765.0,0.64973612]
[1617334539434,0.856272,59766.0,59765.0,0.64973612]
[1617334541037,0.856272,59766.0,59765.0,0.59973612]
[1617334541841,1.242732,59766.0,59765.0,0.59973612]
[1617334542039,2.172732,59766.0,59765.0,0.59973612]
[1617334542245,1.242732,59766.0,59765.0,0.59973612]
[1617334542844,1.30191706,59766.0,59765.0,0.59973612]
[1617334543247,1.242732,59766.0,59765.0,0.59973612]
[1617334543448,1.292732,59766.0,59765.0,0.59973612]
[1617334543644,1.242732,59766.0,59765.0,0.59973612]
[1617334544044,1.292732,59766.0,59765.0,0.59973612]
[1617334545674,1.242732,59766.0,59765.0,0.59973612]
[1617334547174,1.292732,59766.0,59765.0,0.59973612]
[1617334547789,1.242732,59766.0,59765.0,0.59973612]
[1617334548394,0.856272,59766.0,59765.0,0.59973612]
[1617334549196,0.91544377,59766.0,59765.0,0.59473612]
[1617334549395,0.856272,59766.0,59765.0,0.59473612]
[1617334552296,1.242732,59766.0,59765.0,0.59473612]
[1617334552892,1.822732,59766.0,59765.0,0.59473612]
[1617334553094,1.29923774,59766.0,59765.0,0.59473612]
[1617334553292,1.35840884,59766.0,59765.0,0.59473612]
[1617334553496,1.242732,59766.0,59765.0,0.59473612]
[1617334554094,1.30190327,59766.0,59765.0,0.59473612]
[1617334554295,1.242732,59766.0,59765.0,0.59473612]
[1617334555493,0.856272,59766.0,59765.0,0.59473612]
[1617334556894,0.856272,59766.0,59765.0,0.58973612]
[1617334557296,0.556272,59766.0,59765.0,0.58973612]
[1617334558298,0.451272,59766.0,59765.0,0.58973612]
[1617334560101,0.436272,59766.0,59765.0,0.58973612]
[1617334560303,0.591272,59766.0,59765.0,0.58973612]
[1617334561317,0.391272,59766.0,59765.0,0.58973612]
[1617334562318,0.591272,59766.0,59765.0,0.58973612]
[1617334562923,0.977732,59766.0,59765.0,0.58973612]
[1617334563947,0.591272,59766.0,59765.0,0.58973612]
[1617334564149,0.591272,59766.0,59765.0,0.69450354]
[1617334564748,0.491272,59766.0,59765.0,0.69450354]
[1617334565625,0.491272,59766.0,59765.0,0.58973612]
[1617334567625,0.486272,59766.0,59765.0,0.58973612]
[1617334568029,0.355,59766.0,59765.0,0.58973612]
[1617334569628,0.35,59766.0,59765.0,0.58973612]
[1617334570229,0.35,59766.0,59765.0,0.88974012]
[1617334570428,0.2,59766.0,59765.0,0.88974012]
[1617334570633,0.2,59766.0,59765.0,0.99075649]
[1617334571030,0.2,59766.0,59765.0,0.99821573]
[1617334571231,0.2,59766.0,59765.0,0.99796239]
[1617334572233,0.2,59766.0,59765.0,0.99596239]
[1617334572834,0.2,59766.0,59765.0,1.10072981]
[1617334573437,0.25,59770.0,59765.0,1.10072981]
[1617334573644,0.25,59770.0,59766.0,0.299996]
[1617334573844,0.25,59770.0,59767.0,0.09876303]
[1617334574041,0.25,59770.0,59768.0,0.299985]
[1617334574243,0.25,59770.0,59768.0,0.88972112]
[1617334575646,0.4,59769.0,59768.0,0.88972112]
[1617334576044,0.245,59770.0,59768.0,0.88972112]
[1617334576268,0.245,59770.0,59768.0,0.58973612]
[1617334576467,0.245,59770.0,59769.0,0.0099588]
[1617334576672,0.95417027,59770.0,59769.0,0.59969492]
[1617334576867,1.48563027,59770.0,59769.0,0.59969492]
[1617334577664,1.73686227,59770.0,59769.0,0.59969492]
[1617334578069,1.79337397,59770.0,59769.0,0.59969492]
[1617334578469,1.7342037,59770.0,59769.0,0.59969492]
[1617334580558,2.4542037,59770.0,59769.0,0.59969492]
[1617334581762,1.7342037,59770.0,59769.0,0.59969492]
[1617334583562,2.4442037,59770.0,59769.0,0.59969492]
[1617334583763,1.7342037,59770.0,59769.0,0.59969492]
[1617334584359,1.7342037,59770.0,59769.0,0.59469492]
[1617334585162,1.0842037,59770.0,59769.0,0.59469492]
[1617334585563,1.027692,59770.0,59769.0,0.59469492]
[1617334586766,0.641232,59770.0,59769.0,0.59469492]
[1617334587175,0.44918107,59770.0,59769.0,0.69946234]
[1617334587367,0.44918107,59770.0,59769.0,1.06589234]
[1617334587572,0.245,59770.0,59769.0,2.81587134]
[1617334587772,0.245,59770.0,59769.0,3.04986695]
[1617334587974,0.245,59770.0,59769.0,4.08176695]
[1617334588569,0.245,59770.0,59769.0,4.82176695]
[1617334589405,0.245,59770.0,59769.0,4.87176695]
[1617334589807,0.2479539,59770.0,59769.0,4.87176695]
[1617334590003,0.245,59770.0,59769.0,4.87176695]
[1617334592215,0.245,59770.0,59769.0,5.17176695]
[1617334593014,0.245,59770.0,59769.0,5.27543993]
[1617334593616,0.345,59770.0,59769.0,5.27543993]
[1617334593816,0.335,59770.0,59769.0,4.97543993]
[1617334595705,0.335,59770.0,59769.0,3.34853993]
[1617334595904,0.33795384,59770.0,59769.0,3.34853993]
[1617334596500,0.33795384,59770.0,59769.0,4.13853993]
[1617334597302,0.33795384,59770.0,59769.0,4.97543993]
[1617334598000,0.33795384,59770.0,59769.0,4.13853993]
[1617334598204,0.335,59770.0,59769.0,4.13853993]
[1617334599204,0.335,59770.0,59769.0,5.02543993]
[1617334600603,0.335,59770.0,59769.0,5.32543993]
[1617334601007,0.335,59770.0,59769.0,4.51853993]
[1617334601209,0.3379542,59770.0,59769.0,4.46853993]
[1617334601805,0.3379542,59770.0,59769.0,5.30543993]
[1617334602621,0.3379542,59770.0,59769.0,5.35793987]
[1617334603026,5.418e-05,59771.0,59770.0,3.1069]
[1617334603224,5.418e-05,59771.0,59770.0,4.10540345]
[1617334603422,5.418e-05,59771.0,59770.0,4.69513957]
[1617334603622,5.418e-05,59771.0,59770.0,4.79881255]
[1617334603824,5.418e-05,59771.0,59770.0,3.93191255]
[1617334604225,0.16025374,59792.0,59771.0,0.00303724]
[1617334604226,0.05908366,59784.0,59771.0,0.00303724]
[1617334604426,0.06108366,59784.0,59782.0,1.0]
[1617334604629,0.002,59784.0,59782.0,1.0]
[1617334604823,0.05908372,59785.0,59782.0,1.58973612]
[1617334605024,0.05908372,59785.0,59782.0,1.68849915]
[1617334606048,0.05908372,59785.0,59783.0,0.195]
[1617334606247,0.05908372,59785.0,59783.0,0.68849915]
[1617334608066,0.05908372,59785.0,59784.0,0.00745686]
[1617334608468,0.15782836,59788.0,59784.0,0.59719298]
[1617334608875,0.414257,59788.0,59784.0,0.69595601]
[1617334609068,0.251157,59788.0,59784.0,0.69595601]
[1617334609267,0.57208612,59788.0,59784.0,0.59719298]
[1617334609466,0.40898612,59788.0,59784.0,0.59719298]
[1617334609666,0.38646,59787.0,59784.0,0.59719298]
[1617334609870,0.15,59786.0,59784.0,0.59719298]
[1617334610068,1.86646,59785.0,59784.0,0.59719298]
[1617334610269,0.38646,59785.0,59784.0,0.59719298]
[1617334610751,1.05011654,59785.0,59784.0,0.59719298]
[1617334611149,1.40850654,59785.0,59784.0,0.59719298]
[1617334611352,4.73350654,59785.0,59784.0,0.59719298]
[1617334611553,5.09057632,59785.0,59784.0,0.59719298]
[1617334611757,5.3285097,59785.0,59784.0,0.59719298]
[1617334612353,5.4085097,59785.0,59784.0,0.59719298]
[1617334612549,5.38829241,59785.0,59784.0,0.59719298]
[1617334612749,5.28127632,59785.0,59784.0,0.59719298]
[1617334613950,5.33127632,59785.0,59784.0,0.59719298]
[1617334615056,5.58127632,59785.0,59757.0,0.9842]
[1617334615262,0.16,59758.0,59757.0,0.66938]
[1617334615454,1.0470935,59758.0,59757.0,0.66938]
[1617334615657,1.8466535,59758.0,59757.0,0.66938]
[1617334615856,2.52283421,59758.0,59757.0,0.66938]
[1617334616055,2.17484071,59758.0,59757.0,0.66938]
[1617334616251,5.25484071,59758.0,59757.0,0.66938]
[1617334616452,5.64675907,59758.0,59757.0,0.66938]
[1617334616851,5.64175907,59758.0,59757.0,0.66938]
[1617334617053,5.89175907,59758.0,59757.0,0.38518]
[1617334618050,5.60175907,59758.0,59757.0,0.38518]
[1617334618273,5.64175907,59758.0,59757.0,0.38518]
[1617334618475,5.89175907,59758.0,59757.0,0.38518]
[1617334618876,5.64175907,59758.0,59757.0,0.38518]
[1617334620278,5.60175907,59758.0,59757.0,0.38518]
[1617334620679,5.64175907,59758.0,59757.0,0.38518]
[1617334620891,5.89175907,59758.0,59757.0,0.38518]
[1617334621095,6.24692431,59758.0,59757.0,0.38518]
[1617334621900,3.42909278,59755.0,59746.0,0.0004]
[1617334622098,4.55665278,59755.0,59754.0,3e-06]
[1617334622298,0.34607338,59747.0,59746.0,0.000203]
[1617334622500,0.35516524,59746.0,59745.0,3e-06]
[1617334622698,1.40290595,59746.0,59745.0,0.669513]
[1617334622897,5.46439595,59746.0,59745.0,0.668913]
[1617334623107,5.46439595,59746.0,59737.0,0.00024]
[1617334623108,4.4831,59745.0,59737.0,0.00024]
[1617334623310,4.4831,59745.0,59726.0,0.0004]
[1617334623311,0.51452548,59737.0,59726.0,0.0004]
[1617334623543,0.51452548,59737.0,59710.0,0.00082]
[1617334623544,3.2431,59729.0,59723.0,0.874203]
[1617334623732,0.2881,59728.0,59723.0,0.874203]
[1617334623933,3.281,59724.0,59723.0,0.874203]
[1617334624127,5.08528071,59724.0,59723.0,0.874203]
[1617334624327,5.94044595,59724.0,59723.0,1.543963]
[1617334624525,5.94044595,59724.0,59723.0,1.538963]
[1617334624725,5.58528071,59724.0,59723.0,1.538963]
[1617334624926,5.58528071,59724.0,59723.0,0.66976]
[1617334625324,5.54528071,59724.0,59723.0,0.65616]
[1617334625529,5.64528071,59724.0,59723.0,0.63696]
[1617334625799,5.64528071,59724.0,59722.0,0.00022]
[1617334625800,3.6871,59723.0,59722.0,0.00022]
[1617334625992,4.16356,59723.0,59722.0,0.00022]
[1617334626190,5.82152758,59723.0,59722.0,0.00022]
[1617334626389,6.53344594,59723.0,59722.0,0.00022]
[1617334626594,6.53344594,59723.0,59710.0,0.00082]
[1617334626595,3.08,59721.0,59710.0,0.00082]
[1617334626802,0.38646,59717.0,59710.0,0.00082]
[1617334627000,3.41884099,59711.0,59710.0,0.00082]
[1617334627200,0.35516524,59709.0,59702.0,0.00082]
[1617334627395,4.04587,59706.0,59702.0,0.00082]
[1617334627593,4.24897,59706.0,59702.0,0.00082]
[1617334627796,5.68716454,59706.0,59702.0,0.00082]
[1617334628004,5.68716454,59706.0,59699.0,0.00032]
[1617334628005,0.35516524,59704.0,59699.0,0.00032]
[1617334628203,0.35516524,59702.0,59699.0,0.67035]